lending/lending_fUSD_20240512
["ID","MTS","AMOUNT","RATE_DAILY","PERIOD"]
[326852323,1715512238655,-6730.1,0.00012979,21]
[326852324,1715512238664,-1842.33,0.00012979,16]
[326852325,1715512238673,-2749.02,0.00012979,7]
[326852326,1715512238682,-8294.87446959,0.00012979,21]
[326852327,1715512238692,-547.59,0.00012979,6]
[326852328,1715512238702,-514.33,0.00012979,2]
[326852329,1715512238711,-6730.12320842,0.00012979,21]
[326852330,1715512238720,-833.39,0.00012979,2]
[326852331,1715512238729,-1842.33,0.00012979,17]
[326852332,1715512238739,-2213.84,0.00012979,9]
[326852333,1715512238748,-2749.02,0.00012979,8]
[326852334,1715512238757,-917.88,0.00012979,2]
[326852335,1715512238768,-547.59,0.00012979,7]
[326852336,1715512238779,-833.39,0.00012979,3]
[326852337,1715512238790,-2213.84,0.00012979,10]
[326852338,1715512238800,-1842.33,0.00012979,18]
[326852339,1715512238810,-2749.02,0.00012979,9]
[326852340,1715512238821,-547.59,0.00012979,8]
[326852341,1715512238830,-833.39,0.00012979,4]
[326852342,1715512238840,-514.33,0.00012979,3]
[326852343,1715512238850,-2213.84,0.00012979,11]
[326852344,1715512238861,-917.88,0.00012979,3]
[326852345,1715512238871,-2749.02,0.00012979,10]
[326852346,1715512238882,-1842.33,0.00012979,19]
[326852347,1715512238893,-547.59,0.00012979,9]
[326852348,1715512238902,-833.39,0.00012979,5]
[326852349,1715512238911,-2213.84,0.00012979,12]
[326852350,1715512238920,-514.33,0.00012979,4]
[326852351,1715512238929,-917.88,0.00012979,4]
[326852352,1715512238940,-2749.02,0.00012979,11]
[326852353,1715512238949,-1842.33,0.00012979,20]
[326852354,1715512238958,-547.59,0.00012979,10]
[326852355,1715512238967,-833.39,0.00012979,6]
[326852356,1715512238977,-514.33,0.00012979,5]
[326852357,1715512238986,-2213.84,0.00012979,13]
[326852358,1715512238995,-917.88,0.00012979,5]
[326852359,1715512239004,-2749.02,0.00012979,12]
[326852360,1715512239014,-500.0,0.00012979,2]
[326852361,1715512239023,-1842.33,0.00012979,21]
[326852362,1715512239033,-833.39,0.00012979,7]
[326852363,1715512239042,-514.33,0.00012979,6]
[326852364,1715512239051,-547.59,0.00012979,11]
[326852365,1715512239060,-2213.84,0.00012979,14]
[326852366,1715512239069,-917.88,0.00012979,6]
[326852367,1715512239078,-2749.02,0.00012979,13]
[326852368,1715512239087,-500.0,0.00012979,3]
[326852369,1715512239096,-1842.33,0.00012979,21]
[326852370,1715512239104,-514.33,0.00012979,7]
[326852371,1715512239114,-833.39,0.00012979,8]
[326852372,1715512239123,-547.59,0.00012979,12]
[326852373,1715512239132,-917.88,0.00012979,7]
[326852374,1715512239141,-2749.02,0.00012979,14]
[326852375,1715512239150,-500.0,0.00012979,4]
[326852376,1715512239159,-1842.33,0.00012979,21]
[326852377,1715512239168,-547.59,0.00012979,13]
[326852378,1715512239177,-514.33,0.00012979,8]
[326852379,1715512239186,-833.39,0.00012979,9]
[326852380,1715512239195,-2213.84,0.00012979,15]
[326852381,1715512239204,-500.0,0.00012979,5]
[326852382,1715512239213,-917.88,0.00012979,8]
[326852383,1715512239222,-2749.02,0.00012979,15]
[326852384,1715512239232,-1842.33,0.00012979,21]
[326852385,1715512239241,-514.33,0.00012979,9]
[326852386,1715512239251,-833.39,0.00012979,10]
[326852387,1715512239260,-547.59,0.00012979,14]
[326852388,1715512239270,-500.0,0.00012979,6]
[326852389,1715512239279,-2213.84,0.00012979,16]
[326852390,1715512239289,-917.88,0.00012979,9]
[326852391,1715512239298,-2749.02,0.00012979,16]
[326852392,1715512239307,-1842.37616831,0.00012979,21]
[326852393,1715512239317,-514.33,0.00012979,10]
[326852394,1715512239326,-547.59,0.00012979,15]
[326852395,1715512239335,-833.39,0.00012979,11]
[326852396,1715512239344,-500.0,0.00012979,7]
[326852397,1715512239354,-917.88,0.00012979,10]
[326852398,1715512239363,-2213.84,0.00012979,17]
[326852399,1715512239372,-2749.02,0.00012979,17]
[326852400,1715512239382,-514.33,0.00012979,11]
[326852401,1715512239662,-500.0,0.00012979,8]
[326852402,1715512239673,-917.88,0.00012979,11]
[326852403,1715512239682,-547.59,0.00012979,16]
[326852404,1715512239692,-2213.84,0.00012979,18]
[326852405,1715512239701,-2121.62,0.00012979,2]
[326852406,1715512239711,-833.39,0.00012979,12]
[326852407,1715512239720,-514.33,0.00012979,12]
[326852408,1715512239729,-500.0,0.00012979,9]
[326852409,1715512239738,-917.88,0.00012979,12]
[326852410,1715512239747,-2213.84,0.00012979,19]
[326852411,1715512239757,-547.59,0.00012979,17]
[326852412,1715512239766,-2121.62,0.00012979,3]
[326852413,1715512239775,-833.39,0.00012979,13]
[326852414,1715512239784,-514.33,0.00012979,13]
[326852415,1715512239794,-500.0,0.00012979,10]
[326852416,1715512239803,-917.88,0.00012979,13]
[326852417,1715512239811,-2749.02,0.00012979,18]
[326852418,1715512239821,-2213.84,0.00012979,20]
[326852419,1715512239830,-547.59,0.00012979,18]
[326852420,1715512239839,-833.39,0.00012979,14]
[326852421,1715512239848,-2121.62,0.00012979,4]
[326852422,1715512239858,-500.0,0.00012979,11]
[326852423,1715512239867,-917.88,0.00012979,14]
[326852424,1715512239876,-2749.02,0.00012979,19]
[326852425,1715512239886,-2213.84,0.00012979,21]
[326852426,1715512239895,-833.39,0.00012979,15]
[326852427,1715512239904,-547.59,0.00012979,19]
[326852428,1715512239913,-539.36093048,0.00012979,2]
[326852429,1715512239922,-3177.66,0.00012979,2]
[326852430,1715512239932,-514.33,0.00012979,14]
[326852431,1715512239942,-2121.62,0.00012979,5]
[326852432,1715512239951,-500.0,0.00012979,12]
[326852433,1715512239960,-917.88,0.00012979,15]
[326852434,1715512239969,-2749.02,0.00012979,20]
[326852435,1715512239978,-547.59,0.00012979,20]
[326852436,1715512239987,-833.39,0.00012979,16]
[326852437,1715512239996,-2213.84,0.00012979,21]
[326852438,1715512240006,-3177.66,0.00012979,3]
[326852439,1715512240015,-514.33,0.00012979,15]
[326852440,1715512240024,-2121.62,0.00012979,6]
[326852441,1715512240034,-917.88,0.00012979,16]
[326852442,1715512240043,-547.59,0.00012979,21]
[326852443,1715512240052,-2749.02,0.00012979,21]
[326852444,1715512240061,-2213.84,0.00012979,21]
[326852445,1715512240075,-833.39,0.00012979,17]
[326852446,1715512240084,-3177.66,0.00012979,4]
[326852447,1715512240093,-2295.1,0.00012979,2]
[326852448,1715512240102,-500.0,0.00012979,13]
[326852449,1715512240111,-514.33,0.00012979,16]
[326852450,1715512240121,-2121.62,0.00012979,7]
[326852451,1715512240130,-917.88,0.00012979,17]
[326852452,1715512240140,-500.0,0.00012979,2]
[326852453,1715512240149,-547.59,0.00012979,21]
[326852454,1715512240158,-833.39,0.00012979,18]
[326852455,1715512240168,-2749.02,0.00012979,21]
[326852456,1715512240177,-3177.66,0.00012979,5]
[326852457,1715512240187,-2295.1,0.00012979,3]
[326852458,1715512240196,-500.0,0.00012979,14]
[326852459,1715512240206,-514.33,0.00012979,17]
[326852460,1715512240215,-2213.84,0.00012979,21]
[326852461,1715512240225,-2121.62,0.00012979,8]
[326852462,1715512240234,-983.27,0.00012979,2]
[326852463,1715512240244,-917.88,0.00012979,18]
[326852464,1715512240254,-547.59,0.00012979,21]
[326852465,1715512240263,-2295.1,0.00012979,4]
[326852466,1715512240273,-833.39,0.00012979,19]
[326852468,1715512240282,-3177.66,0.00012979,6]
[326852469,1715512240292,-514.33,0.00012979,18]
[326852470,1715512240301,-538.69573099,0.00012979,15]
[326852471,1715512240311,-2213.95452691,0.00012979,21]
[326852472,1715512240320,-2121.62,0.00012979,9]
[326852473,1715512240330,-983.27,0.00012979,3]
[326852474,1715512240340,-547.59,0.00012979,21]
[326852475,1715512240349,-833.39,0.00012979,20]
[326852476,1715512240359,-917.88,0.00012979,19]
[326852477,1715512240369,-510.61746323,0.00012979,3]
[326852478,1715512240379,-3177.66,0.00012979,7]
[326852479,1715512240388,-2295.1,0.00012979,5]
[326852480,1715512240399,-2749.02,0.00012979,21]
[326852481,1715512240408,-514.33,0.00012979,19]
[326852482,1715512240418,-983.27,0.00012979,4]
[326852483,1715512240427,-2121.62,0.00012979,10]
[326852484,1715512240437,-547.65197599,0.00012979,21]
[326852485,1715512240446,-917.88,0.00012979,20]
[326852486,1715512240456,-2295.1,0.00012979,6]
[326852487,1715512240465,-833.39,0.00012979,21]
[326852488,1715512240475,-3177.66,0.00012979,8]
[326852489,1715512240484,-2749.02,0.00012979,21]
[326852490,1715512240493,-514.33,0.00012979,20]
[326852491,1715512240502,-2121.62,0.00012979,11]
[326852492,1715512240513,-983.27,0.00012979,5]
[326852493,1715512240526,-917.88,0.00012979,21]
[326852494,1715512240535,-833.39,0.00012979,21]
[326852495,1715512240544,-2295.1,0.00012979,7]
[326852496,1715512240554,-3177.66,0.00012979,9]
[326852497,1715512240564,-2749.17476019,0.00012979,21]
[326852498,1715512240573,-526.04772333,0.00012979,2]
[326852499,1715512240582,-514.33,0.00012979,21]
[326852500,1715512240591,-983.27,0.00012979,6]
[326852501,1715512240602,-917.88,0.00012979,21]
[326852502,1715512240612,-2295.1,0.00012979,8]
[326852503,1715512240621,-3177.66,0.00012979,10]
[326852504,1715512240631,-514.33,0.00012979,21]
[326852506,1715512240639,-983.27,0.00012979,7]
[326852507,1715512240649,-2121.62,0.00012979,12]
[326852508,1715512240659,-917.88,0.00012979,21]
[326852509,1715512240668,-2295.1,0.00012979,9]
[326852510,1715512240677,-3177.66,0.00012979,11]
[326852511,1715512240687,-833.39,0.00012979,21]
[326852512,1715512240696,-514.33,0.00012979,21]
[326852513,1715512240705,-983.27,0.00012979,8]
[326852514,1715512240714,-2121.62,0.00012979,13]
[326852515,1715512240723,-917.88,0.00012979,21]
[326852516,1715512240732,-34660.46,0.00012979,2]
[326852517,1715512240741,-2295.1,0.00012979,10]
[326852518,1715512240750,-833.39,0.00012979,21]
[326852519,1715512240760,-983.27,0.00012979,9]
[326852520,1715512240769,-514.33,0.00012979,21]
[326852521,1715512240779,-917.91762934,0.00012979,21]
[326852522,1715512240788,-2121.62,0.00012979,14]
[326852523,1715512240797,-2295.1,0.00012979,11]
[326852524,1715512240807,-34660.46,0.00012979,3]
[326852526,1715512240816,-3177.66,0.00012979,12]
[326852528,1715512240825,-833.4908016,0.00012979,21]
[326852530,1715512240834,-514.33248794,0.00012979,21]
[326852532,1715512240843,-2121.62,0.00012979,15]
[326852534,1715512240853,-2295.1,0.00012979,12]
[326852536,1715512240862,-500.0,0.00012979,2]
[326852538,1715512240871,-34660.46,0.00012979,4]
[326852541,1715512240881,-3177.66,0.00012979,13]
[326852543,1715512240891,-500.0,0.00012979,2]
[326852545,1715512240900,-983.27,0.00012979,10]
[326852547,1715512240910,-2121.62,0.00012979,16]
[326852549,1715512240919,-500.0,0.00012979,3]
[326852551,1715512240929,-2295.1,0.00012979,13]
[326852552,1715512240938,-500.0,0.00012979,2]
[326852553,1715512240948,-3177.66,0.00012979,14]
[326852554,1715512240958,-500.0,0.00012979,3]
[326852555,1715512240967,-983.27,0.00012979,11]
[326852556,1715512240977,-2121.62,0.00012979,17]
[326852557,1715512240987,-500.0,0.00012979,4]
[326852558,1715512240997,-500.0,0.00012979,3]
[326852559,1715512241006,-34660.46,0.00012979,5]
[326852560,1715512241016,-500.0,0.00012979,2]
[326852561,1715512241027,-508.8066244,0.00012979,4]
[326852562,1715512241039,-3177.66,0.00012979,15]
[326852563,1715512241048,-1143.27,0.00012979,2]
[326852564,1715512241058,-983.27,0.00012979,12]
[326852565,1715512241069,-2121.62,0.00012979,18]
[326852566,1715512241080,-500.0,0.00012979,5]
[326852567,1715512241091,-2295.1,0.00012979,14]
[326852568,1715512241100,-500.0,0.00012979,4]
[326852569,1715512241110,-34660.46,0.00012979,6]
[326852570,1715512241119,-3177.66,0.00012979,16]
[326852571,1715512241129,-2821.88,0.00012979,2]
[326852572,1715512241138,-1143.27,0.00012979,3]
[326852573,1715512241149,-983.27,0.00012979,13]
[326852574,1715512241158,-2121.62,0.00012979,19]
[326852575,1715512241168,-2295.1,0.00012979,15]
[326852576,1715512241178,-500.0,0.00012979,6]
[326852577,1715512241187,-3177.66,0.00012979,17]
[326852578,1715512241197,-500.0,0.00012979,3]
[326852579,1715512241206,-2821.88,0.00012979,3]
[326852580,1715512241216,-983.27,0.00012979,14]
[326852581,1715512241225,-1143.27,0.00012979,4]
[326852582,1715512241234,-2121.62,0.00012979,20]
[326852583,1715512241243,-500.0,0.00012979,7]
[326852584,1715512241253,-2295.1,0.00012979,16]
[326852585,1715512241262,-3177.66,0.00012979,18]
[326852586,1715512241274,-500.0,0.00012979,4]
[326852587,1715512241283,-34660.46,0.00012979,7]
[326852588,1715512241292,-983.27,0.00012979,15]
[326852589,1715512241301,-2821.88,0.00012979,4]
[326852590,1715512241310,-2121.62,0.00012979,21]
[326852591,1715512241320,-1143.27,0.00012979,5]
[326852592,1715512241330,-500.0,0.00012979,8]
[326852593,1715512241339,-2295.1,0.00012979,17]
[326852594,1715512241348,-500.0,0.00012979,2]
[326852595,1715512241358,-3177.66,0.00012979,19]
[326852596,1715512241367,-983.27,0.00012979,16]
[326852597,1715512241377,-2821.88,0.00012979,5]
[326852598,1715512241387,-500.0,0.00012979,5]
[326852599,1715512241396,-2121.62,0.00012979,21]
[326852600,1715512241406,-500.0,0.00012979,2]
[326852601,1715512241415,-500.0,0.00012979,9]
[326852602,1715512241424,-34660.46,0.00012979,8]
[326852603,1715512241434,-3177.66,0.00012979,20]
[326852604,1715512241444,-983.27,0.00012979,17]
[326852605,1715512241453,-2821.88,0.00012979,6]
[326852606,1715512241463,-500.0,0.00012979,3]
[326852607,1715512241472,-500.0,0.00012979,6]
[326852608,1715512241481,-500.0,0.00012979,2]
[326852609,1715512241490,-394.27774839,0.00012979,3]
[326852610,1715512241499,-2121.62,0.00012979,21]
[326852611,1715512241509,-1143.27,0.00012979,6]
[326852612,1715512241522,-2295.1,0.00012979,18]
[326852613,1715512241531,-500.0,0.00012979,10]
[326852614,1715512241541,-983.27,0.00012979,18]
[326852615,1715512241549,-2821.88,0.00012979,7]
[326852616,1715512241560,-531.77597243,0.00012979,4]
[326852617,1715512241570,-500.0,0.00012979,3]
[326852618,1715512241579,-500.0,0.00012979,7]
[326852619,1715512241588,-3174.82,0.00012979,2]
[326852620,1715512241599,-1143.27,0.00012979,7]
[326852621,1715512241609,-2295.1,0.00012979,19]
[326852622,1715512241618,-500.0,0.00012979,11]
[326852623,1715512241627,-34660.46,0.00012979,9]
[326852624,1715512241636,-983.27,0.00012979,19]
[326852625,1715512241646,-1912.31851931,0.00012979,8]
[326852626,1715512242771,-500.0,0.00012978,2]
[326852627,1715512242780,-909.56148069,0.00012979,8]
[326852628,1715512242790,-3177.66,0.00012979,21]
[326852629,1715512242800,-500.0,0.00012979,4]
[326852630,1715512242809,-500.0,0.00012979,8]
[326852631,1715512242819,-3174.82,0.00012979,3]
[326852632,1715512242828,-1143.27,0.00012979,8]
[326852633,1715512242838,-21147.1885193,0.00012979,10]
[326852634,1715512242851,-271.169197,0.00012979,10]
[326852635,1715512242864,-653.4,0.00012979,10]
[326852636,1715512242875,-267.4029094,0.00012979,10]
[326852637,1715512242946,-690.57,0.00012978,4]
[326852638,1715512242956,-156.86865072,0.00012979,10]
[326852654,1715512244049,-511.81449438,0.00012978,5]
[326852657,1715512244061,-178.75550562,0.00012978,5]
[326852659,1715512244070,-2938.87,0.00012978,13]
[326852661,1715512244079,-690.57,0.00012978,6]
[326852663,1715512244088,-2938.87,0.00012978,14]
[326852665,1715512244098,-2938.87,0.00012978,15]
[326852667,1715512244107,-690.57,0.00012978,7]
[326852669,1715512244116,-2938.87,0.00012978,16]
[326852671,1715512244125,-690.57,0.00012978,8]
[326852673,1715512244134,-690.57,0.00012978,9]
[326852675,1715512244143,-2938.87,0.00012978,17]
[326852676,1715512244153,-2938.87,0.00012978,18]
[326852679,1715512244162,-690.57,0.00012978,10]
[326852681,1715512244172,-9364.44704928,0.00012979,10]
[326852683,1715512244183,-436.84500007,0.00012979,10]
[326852685,1715512244194,-500.0,0.00012979,10]
[326852695,1715512244275,-367.30215319,0.00012978,11]
[326852696,1715512244286,-323.26784681,0.00012978,11]
[326852698,1715512244296,-39.47910364,0.00012978,19]
[326852699,1715512244307,-2899.39089636,0.00012978,19]
[326852700,1715512244316,-1863.13867423,0.00012979,10]
[326852701,1715512244325,-500.0,0.00012979,2]
[326852702,1715512244334,-3177.66,0.00012979,21]
[326852703,1715512244343,-2821.88,0.00012979,9]
[326852704,1715512244353,-500.0,0.00012979,5]
[326852705,1715512244362,-500.0,0.00012979,9]
[326852706,1715512244371,-983.27,0.00012979,20]
[326852707,1715512244380,-3174.82,0.00012979,4]
[326852708,1715512244389,-1143.27,0.00012979,9]
[326852709,1715512244399,-500.0,0.00012979,12]
[326852710,1715512244409,-34660.46,0.00012979,11]
[326852711,1715512244418,-500.0,0.00012979,3]
[326852712,1715512244429,-3177.66,0.00012979,21]
[326852713,1715512244439,-2821.88,0.00012979,10]
[326852714,1715512244448,-500.0,0.00012979,10]
[326852715,1715512244458,-500.0,0.00012979,6]
[326852716,1715512244467,-3174.82,0.00012979,5]
[326852717,1715512244477,-983.27,0.00012979,21]
[326852718,1715512244486,-1143.27,0.00012979,10]
[326852719,1715512244496,-539.26048569,0.00012979,13]
[326852721,1715512244505,-500.0,0.00012979,4]
[326852723,1715512244518,-3177.66,0.00012979,21]
[326852725,1715512244529,-2821.88,0.00012979,11]
[326852727,1715512244539,-500.0,0.00012979,7]
[326852729,1715512244548,-983.27,0.00012979,21]
[326852731,1715512244559,-1143.27,0.00012979,11]
[326852733,1715512244569,-3174.82,0.00012979,6]
[326852735,1715512244584,-520.5643673,0.00012979,5]
[326852737,1715512244595,-34660.46,0.00012979,12]
[326852739,1715512244606,-3177.85228934,0.00012979,21]
[326852740,1715512244616,-2821.88,0.00012979,12]
[326852742,1715512244626,-500.0,0.00012979,8]
[326852744,1715512244636,-1143.27,0.00012979,12]
[326852746,1715512244646,-983.27,0.00012979,21]
[326852748,1715512244658,-3174.82,0.00012979,7]
[326852750,1715512244668,-5347.86138757,0.00012979,13]
[326852753,1715512244695,-9255.66764001,0.00012979,13]
[326852766,1715512244818,-745.83403878,0.00012978,20]
[326852768,1715512244830,-542.76931822,0.00012978,20]
[326852770,1715512244842,-664.35000011,0.00012978,20]
[326852772,1715512244854,-985.91664289,0.00012978,20]
[326852774,1715512244864,-690.57,0.00012978,12]
[326852776,1715512244873,-10973.07064821,0.00012979,13]
[326852778,1715512244885,-9083.86032421,0.00012979,13]
[326852780,1715512244895,-500.0,0.00012979,9]
[326852782,1715512244905,-2821.88,0.00012979,13]
[326852784,1715512244915,-3174.82,0.00012979,8]
[326852786,1715512244925,-500.0,0.00012979,11]
[326852788,1715512244937,-500.0,0.00012979,10]
[326852790,1715512244947,-2821.88,0.00012979,14]
[326852792,1715512244957,-983.27,0.00012979,21]
[326852794,1715512244967,-3174.82,0.00012979,9]
[326852796,1715512244977,-500.0,0.00012979,11]
[326852798,1715512244987,-1143.27,0.00012979,13]
[326852799,1715512244997,-8207.28038117,0.00012979,14]
[326852802,1715512245013,-1130.54686907,0.00012979,14]
[326852804,1715512245024,-16605.33212659,0.00012979,14]
[326852806,1715512245036,-3400.27234837,0.00012979,14]
[326852808,1715512245048,-930.0,0.00012979,14]
[326852811,1715512245060,-4387.0282748,0.00012979,14]
[326852812,1715512245069,-2821.88,0.00012979,15]
[326852814,1715512245079,-983.46738175,0.00012979,21]
[326852816,1715512245089,-500.0,0.00012979,2]
[326852818,1715512245099,-320.62521739,0.00012979,12]
[326852820,1715512245109,-3174.82,0.00012979,10]
[326852822,1715512245118,-2821.88,0.00012979,16]
[326852824,1715512245127,-1143.27,0.00012979,14]
[326852825,1715512245139,-3174.82,0.00012979,11]
[326852826,1715512245149,-34660.46,0.00012979,15]
[326852827,1715512245159,-2821.88,0.00012979,17]
[326852828,1715512245168,-1143.27,0.00012979,15]
[326852829,1715512245177,-4349.04787675,0.00012979,16]
[326852830,1715512245194,-30311.41212325,0.00012979,16]
[326852831,1715512245204,-3174.82,0.00012979,12]
[326852832,1715512245214,-2821.88,0.00012979,18]
[326852833,1715512245228,-1143.27,0.00012979,16]
[326852834,1715512245237,-500.0,0.00012979,3]
[326852835,1715512245255,-6198.4652919,0.00012979,17]
[326852836,1715512245278,-8034.2865,0.00012979,17]
[326852837,1715512245297,-300.25019249,0.00012979,17]
[326852876,1715512246258,-155.0,0.00012977,2]
[326852879,1715512246271,-213.58260377,0.00012978,21]
[326852881,1715512246287,-2725.28739623,0.00012978,21]
[326852883,1715512246299,-690.57,0.00012978,13]
[326852886,1715512246313,-2938.87,0.00012978,21]
[326852888,1715512246325,-690.57,0.00012978,14]
[326852890,1715512246338,-500.0,0.00012978,2]
[326852892,1715512246351,-2938.87,0.00012978,21]
[326852894,1715512246363,-500.56167447,0.00012978,2]
[326852896,1715512246376,-690.57,0.00012978,15]
[326852899,1715512246389,-20127.45801561,0.00012979,17]
[326852901,1715512246402,-3174.82,0.00012979,13]
[326852903,1715512246415,-527.61974846,0.00012979,4]
[326852906,1715512246428,-34660.46,0.00012979,18]
[326852908,1715512246441,-1143.27,0.00012979,17]
[326852910,1715512246454,-3174.82,0.00012979,14]
[326852912,1715512246467,-500.0,0.00012979,2]
[326852915,1715512246480,-232.49338265,0.00012979,19]
[326852918,1715512246499,-655.16092701,0.00012979,19]
[326852920,1715512246518,-701.33067573,0.00012979,19]
[326852925,1715512246563,-33071.47501461,0.00012979,19]
[326852927,1715512246576,-1143.27,0.00012979,18]
[326852930,1715512246589,-3174.82,0.00012979,15]
[326852932,1715512246603,-500.0,0.00012979,3]
[326852934,1715512246616,-500.0,0.00012979,2]
[326852937,1715512246630,-34660.46,0.00012979,20]
[326852939,1715512246642,-1143.27,0.00012979,19]
[326852941,1715512246655,-3174.82,0.00012979,16]
[326852943,1715512246668,-500.0,0.00012979,2]
[326852946,1715512246681,-500.0,0.00012979,4]
[326852947,1715512246694,-34660.46,0.00012979,21]
[326852948,1715512246707,-3174.82,0.00012979,17]
[326852949,1715512246720,-500.0,0.00012979,3]
[326852951,1715512246733,-500.0,0.00012979,3]
[326852953,1715512246746,-1143.27,0.00012979,20]
[326852955,1715512246758,-34660.46,0.00012979,21]
[326852957,1715512246771,-500.0,0.00012979,4]
[326852959,1715512246784,-3174.82,0.00012979,18]
[326852961,1715512246797,-500.0,0.00012979,5]
[326852963,1715512246810,-1143.27,0.00012979,21]
[326852964,1715512246822,-500.0,0.00012979,4]
[326852965,1715512246836,-18568.98808655,0.00012979,21]
[326852966,1715512246860,-16091.47191345,0.00012979,21]
[326852967,1715512246873,-525.56851654,0.00012979,5]
[326852968,1715512246978,-2938.87,0.00012978,21]
[326852969,1715512246991,-4.19762624,0.00012979,5]
[326852970,1715512247004,-500.0,0.00012979,2]
[326852971,1715512247018,-3174.82,0.00012979,19]
[326852972,1715512247030,-500.0,0.00012979,6]
[326852973,1715512247043,-500.0,0.00012979,5]
[326852974,1715512247055,-1143.27,0.00012979,21]
[326852975,1715512247068,-885.37,0.00012979,2]
[326852976,1715512247081,-500.0,0.00012979,3]
[326852977,1715512247094,-3174.82,0.00012979,20]
[326852978,1715512247108,-500.0,0.00012979,7]
[326852979,1715512247120,-500.0,0.00012979,2]
[326852980,1715512247132,-500.0,0.00012979,6]
[326852981,1715512247145,-1143.27,0.00012979,21]
[326852982,1715512247158,-34660.46,0.00012979,21]
[326852983,1715512247172,-500.0,0.00012979,4]
[326852984,1715512247184,-3174.82,0.00012979,21]
[326852985,1715512247196,-500.0,0.00012979,8]
[326852986,1715512247209,-500.0,0.00012979,3]
[326852987,1715512247221,-500.0,0.00012979,7]
[326852988,1715512247234,-885.37,0.00012979,3]
[326852989,1715512247248,-1143.27,0.00012979,21]
[326852990,1715512247260,-2849.55,0.00012979,2]
[326852991,1715512247273,-500.0,0.00012979,5]
[326852992,1715512247286,-3174.82,0.00012979,21]
[326852993,1715512247299,-500.0,0.00012979,9]
[326852994,1715512247312,-34660.63407672,0.00012979,21]
[326852995,1715512247324,-530.44676741,0.00012979,4]
[326852996,1715512247333,-500.0,0.00012979,8]
[326852997,1715512247343,-885.37,0.00012979,4]
[326852998,1715512247354,-2849.55,0.00012979,3]
[326852999,1715512247364,-500.0,0.00012979,6]
[326853000,1715512247374,-517.15821522,0.00012979,2]
[326853001,1715512247384,-500.0,0.00012979,10]
[326853002,1715512247393,-3174.82,0.00012979,21]
[326853003,1715512247403,-885.37,0.00012979,5]
[326853004,1715512247412,-500.0,0.00012979,9]
[326853005,1715512247421,-500.0,0.00012979,7]
[326853006,1715512247431,-1143.32994441,0.00012979,21]
[326853007,1715512247440,-2849.55,0.00012979,4]
[326853008,1715512247449,-500.0,0.00012979,11]
[326853009,1715512247458,-3174.82,0.00012979,21]
[326853010,1715512247467,-500.0,0.00012979,10]
[326853011,1715512247477,-885.37,0.00012979,6]
[326853012,1715512247486,-500.0,0.00012979,2]
[326853013,1715512247496,-500.0,0.00012979,8]
[326853014,1715512247505,-3174.85014345,0.00012979,21]
[326853015,1715512247518,-885.37,0.00012979,7]
[326853016,1715512247531,-554.33937779,0.00012979,11]
[326853017,1715512247540,-500.0,0.00012979,12]
[326853018,1715512247549,-512.6219804,0.00012979,3]
[326853019,1715512247559,-2121.62,0.00012979,21]
[326853020,1715512247571,-500.0,0.00012979,9]
[326853021,1715512247581,-2849.55,0.00012979,5]
[326853022,1715512247590,-885.37,0.00012979,8]
[326853023,1715512247603,-1036.58,0.00012979,2]